Workbook

Sheet 10TH OCT13 DEPOT
A1: EX DEPOT PRICE 10.10.13
D2: PRIME-GRADES | I2: OFF-GRADES
D3: 67-01/67BER01/67GER01 | E3: 67-11 | F3: 57GER01 | G3: 57GMR01 | H3: 67GER01F | I3: 67-03/67BER03/67GER03 | J3: 57GMR03
A5: MUMBAI /PANVEL | B5: CRDT. | C5: BASIC | D5: 73893 | E5: =D5+500 -> 74393 | F5: =D5+3000 -> 76893 | G5: =D5+1500 -> 75393 | H5: =D5+300 -> 74193 | I5: =D5-1000 -> 72893 | J5: =D5+500 -> 74393
C6: EX.DUTY 12.36% | D6: =SUM(D5*12.36%) -> 9133.1748 | E6: 9194.9748 | F6: 9503.9748 | G6: 9318.5748 | H6: 9170.2548 | I6: 9009.5748 | J6: 9194.9748
C7: TRADE DISC. | D7: 0 | E7: 0 | F7: 0 | G7: 0 | H7: 0 | I7: 0 | J7: 0
C8: EX-GODOWN | D8: =D5+D6 -> 83026.1748 | E8: 83587.9748 | F8: 86396.9748 | G8: 84711.5748 | H8: 83363.2548 | I8: 81902.5748 | J8: 83587.9748
B9: CASH | C9: CASH.DISC | D9: 700 | E9: =D9 -> 700 | F9: 700 | G9: 700 | H9: 700 | I9: 700 | J9: 700
C10: EX-GODOWN | D10: =D8-D9 -> 82326.1748 | E10: 82887.9748 | F10: 85696.9748 | G10: 84011.5748 | H10: 82663.2548 | I10: 81202.5748 | J10: 82887.9748
A12: Daman | B12: CRDT. | C12: BASIC | D12: =D5-65 -> 73828 | E12: =D12+500 -> 74328 | F12: =D12+3000 -> 76828 | G12: =D12+1500 -> 75328 | H12: =D12+300 -> 74128 | I12: =D12-1000 -> 72828 | J12: =D12+500 -> 74328
C13: EX.DUTY 12.36% | D13: =SUM(D12*12.36%) -> 9125.1408 | E13: 9186.9408 | F13: 9495.9408 | G13: 9310.5408 | H13: 9162.2208 | I13: 9001.5408 | J13: 9186.9408
C14: TRADE DISC. | D14: 0 | E14: 0 | F14: 0 | G14: 0 | H14: 0 | I14: 0 | J14: 0
C15: EX-GODOWN | D15: =D12+D13 -> 82953.1408 | E15: 83514.9408 | F15: 86323.9408 | G15: 84638.5408 | H15: 83290.2208 | I15: 81829.5408 | J15: 83514.9408
B16: CASH | C16: CASH.DISC | D16: =D9 -> 700 | E16: =E9 -> 700 | F16: 700 | G16: 700 | H16: 700 | I16: 700 | J16: 700
C17: EX-GODOWN | D17: =D15-D16 -> 82253.1408 | E17: 82814.9408 | F17: 85623.9408 | G17: 83938.5408 | H17: 82590.2208 | I17: 81129.5408 | J17: 82814.9408
A19: Jalgaon | B19: CRDT. | C19: BASIC | D19: =D5+101 -> 73994 | E19: =D19+500 -> 74494 | F19: =D19+3000 -> 76994 | G19: =D19+1500 -> 75494 | H19: =D19+300 -> 74294 | I19: =D19-1000 -> 72994 | J19: =D19+500 -> 74494
C20: EX.DUTY 12.36% | D20: =SUM(D19*12.36%) -> 9145.6584 | E20: 9207.4584 | F20: 9516.4584 | G20: 9331.0584 | H20: 9182.7384 | I20: 9022.0584 | J20: 9207.4584
C21: TRADE DISC. | D21: 0 | E21: 0 | F21: 0 | G21: 0 | H21: 0 | I21: 0 | J21: 0
C22: EX-GODOWN | D22: =D19+D20 -> 83139.6584 | E22: 83701.4584 | F22: 86510.4584 | G22: 84825.0584 | H22: 83476.7384 | I22: 82016.0584 | J22: 83701.4584
B23: CASH | C23: CASH.DISC | D23: =D9 -> 700 | E23: =E9 -> 700 | F23: 700 | G23: 700 | H23: 700 | I23: 700 | J23: 700
C24: EX-GODOWN | D24: =D22-D23 -> 82439.6584 | E24: 83001.4584 | F24: 85810.4584 | G24: 84125.0584 | H24: 82776.7384 | I24: 81316.0584 | J24: 83001.4584
A26: Pune | B26: CRDT. | C26: BASIC | D26: =D5+798 -> 74691 | E26: =D26+500 -> 75191 | F26: =D26+3000 -> 77691 | G26: =D26+1500 -> 76191 | H26: =D26+300 -> 74991 | I26: =D26-1000 -> 73691 | J26: =D26+500 -> 75191
C27: EX.DUTY 12.36% | D27: =SUM(D26*12.36%) -> 9231.8076 | E27: 9293.6076 | F27: 9602.6076 | G27: 9417.2076 | H27: 9268.8876 | I27: 9108.2076 | J27: 9293.6076
C28: TRADE DISC. | D28: 0 | E28: 0 | F28: 0 | G28: 0 | H28: 0 | I28: 0 | J28: 0
C29: EX-GODOWN | D29: =D26+D27 -> 83922.8076 | E29: 84484.6076 | F29: 87293.6076 | G29: 85608.2076 | H29: 84259.8876 | I29: 82799.2076 | J29: 84484.6076
B30: CASH | C30: CASH.DISC | D30: =D9 -> 700 | E30: =E9 -> 700 | F30: 700 | G30: 700 | H30: 700 | I30: 700 | J30: 700
C31: EX-GODOWN | D31: =D29-D30 -> 83222.8076 | E31: 83784.6076 | F31: 86593.6076 | G31: 84908.2076 | H31: 83559.8876 | I31: 82099.2076 | J31: 83784.6076
A33: Silvassa | B33: CRDT. | C33: BASIC | D33: =D5-23 -> 73870 | E33: =D33+500 -> 74370 | F33: =D33+3000 -> 76870 | G33: =D33+1500 -> 75370 | H33: =D33+300 -> 74170 | I33: =D33-1000 -> 72870 | J33: =D33+500 -> 74370
C34: EX.DUTY 12.36% | D34: =SUM(D33*12.36%) -> 9130.332 | E34: 9192.132 | F34: 9501.132 | G34: 9315.732 | H34: 9167.412 | I34: 9006.732 | J34: 9192.132
C35: TRADE DISC. | D35: 0 | E35: 0 | F35: 0 | G35: 0 | H35: 0 | I35: 0 | J35: 0
C36: EX-GODOWN | D36: =D33+D34 -> 83000.332 | E36: 83562.132 | F36: 86371.132 | G36: 84685.732 | H36: 83337.412 | I36: 81876.732 | J36: 83562.132
B37: CASH | C37: CASH.DISC | D37: =D9 -> 700 | E37: =E9 -> 700 | F37: 700 | G37: 700 | H37: 700 | I37: 700 | J37: 700
C38: EX-GODOWN | D38: =D36-D37 -> 82300.332 | E38: 82862.132 | F38: 85671.132 | G38: 83985.732 | H38: 82637.412 | I38: 81176.732 | J38: 82862.132
A40: Hyderabad | B40: CRDT. | C40: BASIC | D40: =D5+1922 -> 75815 | E40: =D40+500 -> 76315 | F40: =D40+3000 -> 78815 | G40: =D40+1500 -> 77315 | H40: =D40+300 -> 76115 | I40: =D40-1000 -> 74815 | J40: =D40+500 -> 76315
C41: EX.DUTY 12.36% | D41: =SUM(D40*12.36%) -> 9370.734 | E41: 9432.534 | F41: 9741.534 | G41: 9556.134 | H41: 9407.814 | I41: 9247.134 | J41: 9432.534
C42: TRADE DISC. | D42: 0 | E42: 0 | F42: 0 | G42: 0 | H42: 0 | I42: 0 | J42: 0
C43: EX-GODOWN | D43: =D40+D41 -> 85185.734 | E43: 85747.534 | F43: 88556.534 | G43: 86871.134 | H43: 85522.814 | I43: 84062.134 | J43: 85747.534
B44: CASH | C44: CASH.DISC | D44: =D9 -> 700 | E44: =E9 -> 700 | F44: 700 | G44: 700 | H44: 700 | I44: 700 | J44: 700
C45: EX-GODOWN | D45: =D43-D44 -> 84485.734 | E45: 85047.534 | F45: 87856.534 | G45: 86171.134 | H45: 84822.814 | I45: 83362.134 | J45: 85047.534
A47: Salem | B47: CRDT. | C47: BASIC | D47: =D5+825 -> 74718 | E47: =D47+2500 -> 77218 | F47: =D47+5000 -> 79718 | G47: =D47+3500 -> 78218 | H47: =D47+2300 -> 77018 | I47: =D47-1000 -> 73718 | J47: =D47+2500 -> 77218
C48: EX.DUTY 12.36% | D48: =SUM(D47*12.36%) -> 9235.1448 | E48: 9544.1448 | F48: 9853.1448 | G48: 9667.7448 | H48: 9519.4248 | I48: 9111.5448 | J48: 9544.1448
C49: TRADE DISC. | D49: =D9 -> 700 | E49: =E9 -> 700 | F49: 700 | G49: 700 | H49: 700 | I49: 700 | J49: 700
C50: EX-GODOWN | D50: =D47+D48 -> 83953.1448 | E50: 86762.1448 | F50: 89571.1448 | G50: 87885.7448 | H50: 86537.4248 | I50: 82829.5448 | J50: 86762.1448
B51: CASH | C51: CASH.DISC | D51: =D9 -> 700 | E51: =E9 -> 700 | F51: 700 | G51: 700 | H51: 700 | I51: 700 | J51: 700
C52: EX-GODOWN | D52: =D50-D51 -> 83253.1448 | E52: 86062.1448 | F52: 88871.1448 | G52: 87185.7448 | H52: 85837.4248 | I52: 82129.5448 | J52: 86062.1448
A54: Dehradun | B54: CRDT. | C54: BASIC | D54: =D5+2543 -> 76436 | E54: =D54+500 -> 76936 | F54: =D54+3000 -> 79436 | G54: =D54+1500 -> 77936 | H54: =D54+300 -> 76736 | I54: =D54-1000 -> 75436 | J54: =D54+500 -> 76936
C55: EX.DUTY 12.36% | D55: =SUM(D54*12.36%) -> 9447.4896 | E55: 9509.2896 | F55: 9818.2896 | G55: 9632.8896 | H55: 9484.5696 | I55: 9323.8896 | J55: 9509.2896
C56: TRADE DISC. | D56: 0 | E56: 0 | F56: 0 | G56: 0 | H56: 0 | I56: 0 | J56: 0
C57: EX-GODOWN | D57: =D54+D55 -> 85883.4896 | E57: 86445.2896 | F57: 89254.2896 | G57: 87568.8896 | H57: 86220.5696 | I57: 84759.8896 | J57: 86445.2896
B58: CASH | C58: CASH.DISC | D58: =D9 -> 700 | E58: =E9 -> 700 | F58: 700 | G58: 700 | H58: 700 | I58: 700 | J58: 700
C59: EX-GODOWN | D59: =D57-D58 -> 85183.4896 | E59: 85745.2896 | F59: 88554.2896 | G59: 86868.8896 | H59: 85520.5696 | I59: 84059.8896 | J59: 85745.2896
A61: JAIPUR | B61: CRDT. | C61: BASIC | D61: =D5+1128 -> 75021 | E61: =D61+500 -> 75521 | F61: =D61+3000 -> 78021 | G61: =D61+1500 -> 76521 | H61: =D61+300 -> 75321 | I61: =D61-1000 -> 74021 | J61: =D61+500 -> 75521
C62: EX.DUTY 12.36% | D62: =SUM(D61*12.36%) -> 9272.5956 | E62: 9334.3956 | F62: 9643.3956 | G62: 9457.9956 | H62: 9309.6756 | I62: 9148.9956 | J62: 9334.3956
C63: TRADE DISC. | D63: 0 | E63: 0 | F63: 0 | G63: 0 | H63: 0 | I63: 0 | J63: 0
C64: EX-GODOWN | D64: =D61+D62 -> 84293.5956 | E64: 84855.3956 | F64: 87664.3956 | G64: 85978.9956 | H64: 84630.6756 | I64: 83169.9956 | J64: 84855.3956
B65: CASH | C65: CASH.DISC | D65: =D16 -> 700 | E65: =E16 -> 700 | F65: 700 | G65: 700 | H65: 700 | I65: 700 | J65: 700
C66: EX-GODOWN | D66: =D64-D65 -> 83593.5956 | E66: 84155.3956 | F66: 86964.3956 | G66: 85278.9956 | H66: 83930.6756 | I66: 82469.9956 | J66: 84155.3956

Sheet 10TH OCT13 PL
A1: EX WORKS PRICE 10.10.13
A2: EX-WORKS - HAZIRA / BARODA / GANDHAR location disc in MAHARASHTRA/AP/KRNTKA/KERLA/TN.
C3: CREDIT | J3: CASH
A4: GRADE | B4: NET | C4: LESS | D4: EXCISE | E4: CST | F4: LANDED | H4: NET | I4: LESS | J4: Less | K4: EXCISE | L4: CST | M4: LANDED
B5: BASIC | C5: LOC DISC | D5: 0.1236 | E5: 0.02 | F5: EX-PLANT | H5: BASIC | I5: LOC DISC | J5: Cach Disc | K5: 0.1236 | L5: =E5 -> 0.02 | M5: EX-PLANT
A6: 67-01/67BER01/67GER01 | B6: 72500 | C6: 500 | D6: =(B6-C6)*$D$11 -> 8899.2 | E6: =(B6-C6+D6)*$E$11 -> 1617.984 | F6: =(B6-C6)+D6+E6 -> 82517.184 | H6: =B6 -> 72500 | I6: 500 | J6: 700 | K6: =(H6-I6-J6)*$D$11 -> 8812.68 | L6: =(H6-I6-J6+K6)*$E$11 -> 1602.2536 | M6: =H6-I6-J6+K6+L6 -> 81714.9336
A7: 67-11 | B7: =B6+500 -> 73000 | C7: 500 | D7: 8961 | E7: 1629.22 | F7: 83090.22 | H7: 73000 | I7: 500 | J7: =J6 -> 700 | K7: =(H7-I7-J7)*$D$11 -> 8874.48 | L7: 1613.4896 | M7: 82287.9696
A8: 67-03/67BER03/67GER03 | B8: =B6-1000 -> 71500 | C8: 500 | D8: 8775.6 | E8: 1595.512 | F8: 81371.112 | H8: 71500 | I8: 500 | J8: =J6 -> 700 | K8: 8689.08 | L8: 1579.7816 | M8: 80568.8616
A10: 57GMR01 | B10: =B6+1500 -> 74000 | C10: 500 | D10: 9084.6 | E10: 1651.692 | F10: 84236.292 | H10: 74000 | I10: 500 | J10: =J6 -> 700 | K10: 8998.08 | L10: 1635.9616 | M10: 83434.0416
A11: 57GER01 | B11: =B6+3000 -> 75500 | C11: 500 | D11: 9270 | E11: 1685.4 | F11: 85955.4 | H11: 75500 | I11: 500 | J11: =J6 -> 700 | K11: 9183.48 | L11: 1669.6696 | M11: 85153.1496
A12: 57GMR03 | B12: =B6+500 -> 73000 | C12: 500 | D12: 8961 | E12: 1629.22 | F12: 83090.22 | H12: 73000 | I12: 500 | J12: =J6 -> 700 | K12: 8874.48 | L12: 1613.4896 | M12: 82287.9696
A13: 67GER01F | B13: =B6+300 -> 72800 | C13: 500 | D13: =(B13-C13)*$D$11 -> 8936.28 | E13: =(B13-C13+D13)*$E$11 -> 1624.7256 | F13: =(B13-C13)+D13+E13 -> 82861.0056 | H13: =H6+300 -> 72800 | I13: 500 | J13: =J6 -> 700 | K13: =(H13-I13-J13)*$D$11 -> 8849.76 | L13: =(H13-I13-J13+K13)*$E$11 -> 1608.9952 | M13: =H13-I13-J13+K13+L13 -> 82058.7552
A15: PLEASE NOTE THE FOLLOWING :
A16: 1) GRADE SPECIFIC DISC OF RS.1500/-MT FOR THE GRADES K 57GER01.
A17: 2) PLEASE NOTE ITS MANDATORY TO HAVE SERVICE TAX NO W.E.F 01.06.08 FOR DISPATCHES FROM RIL
A18: 3) CUSTOMERS HAVE TO SUBMIT ORIGINAL 'C' FORM IN ADVANCE AGAINST PURCHASES MADE FROM
A19: RELIANCE INDS. LTD. | C19: 3A) UNLOADING CHARGES TO BE BORNE BY CUSTOMER IN CASE OF EX WORK SALE.
A20: 4) SALES TAX / VAT AS APPLICABLE RATES WILL BE EXTRA FOR HAZIRA , GANDHAR & GODOWN SALES.
A21: 5) OCTROI & OTHER LOCAL LEVIES ARE TO BE BORNE BY THE CUSTOMER.
A22: 6) LOADING CHARGES AND TRANSPORTATION FOR EX.GODOWN SALES TO BE BORNE BY CUSTOMER.
A23: 7) INTEREST FREE CREDIT DAYS HAVE BEEN REDUCED FROM 14 TO 10 DAYS.
A25: QUANTITY DISCOUNT | I25: TRANSPORTATION WEF 1ST OCT 13
A26: QTY(MT) | B26: 0 < 27 | C26: 27 < 54 | D26: 54 <99 | E26: 99<198 | F26: 198 > | I26: DESTINATION | K26: BD | L26: Hazira | M26: Gandhar
B27: 0 | C27: 100 | D27: 200 | E27: 300 | F27: 400 | I27: ALWAR - JAIPUR | K27: 2113 | L27: 2538 | M27: 2193
I28: AHEMADNAGAR | K28: 1863 | L28: 1603 | M28: 1998
A29: REGIONAL DISCOUNT : RIL-Ex- WORKS - Hazira , Baroda , Gandhar as under. | I29: BHAMBORI | K29: 1443 | L29: 1073 | M29: 1403
B30: K6701 | C30: 67BER01 | D30: 67GER01 | I30: BARODA | K30: - | L30: - | M30: -
A31: Tamilnadu/Kerala | B31: 2000 | C31: 2000 | D31: 2000 | I31: BARSHI | K31: 2503 | L31: 2238 | M31: 2448
A32: Pondichery | B32: 2000 | C32: 2000 | D32: 2000 | I32: BHUJ | K32: 1263 | L32: 1263 | M32: 865
A33: Karnataka | B33: 1000 | C33: 1000 | D33: 1000 | I33: BOISAR | K33: 1268 | L33: 868 | M33: 1283
A34: Note: Above discounts would be applicable only on above pipe grades. | I34: DAMAN | K34: 763 | L34: 547 | M34: 798
B35: ( prime , nonprime n off grades ). | I35: DEHRADUN | K35: 2947 | L35: 3118 | M35: 3107
I36: GOA | K36: 2963 | L36: 2963 | M36: 2963
I37: GONDIA | K37: - | L37: 1945 | M37: 2163
A38: D.E. Prices for Ex Fact- Hazira , Baroda , Gandhar Complexes | I38: GARADHIA | K38: 423 | L38: 610 | M38: 505
A39: Location | B39: Type | C39: 67.01 | I39: HARIDWAR | K39: 2971 | L39: 3061 | M39: 2942
C40: 67GER01 | D40: 57GER01 | E40: 57GMR01 | F40: 67.11 | G40: 67GER01 F | I40: JALGAON | K40: 1461 | L40: 1106 | M40: 1411
A41: EX WORKS HZ , BC & GC. | B41: EOU-CT3/AIL | C41: =B6-5000 -> 67500 | D41: =B6-3500 -> 69000 | E41: =B6-3500 -> 69000 | F41: =B6-4500 -> 68000 | G41: =B6-4700 -> 67800 | I41: RAVER | K41: 1538 | L41: 1158 | M41: 1528
I42: JAMMU | K42: 3713 | L42: 3363 | M42: 3811
I43: MUMBAI | K43: 1443 | L43: 1133 | M43: 1453
I44: NALGONDA | K44: 2956 | L44: 2638 | M44: 2773
I45: NASHIK | K45: 1483 | L45: 1173 | M45: 1533
I46: NAGPUR | K46: 2119 | L46: 1852 | M46: 2102
I47: PHALTAN | K47: - | L47: 2213 | M47: -
I48: SANGLI | K48: 2273 | L48: 2253 | M48: 2503
I49: SATARA | K49: 2213 | L49: 2213 | M49: 2188
I50: SILVASSA | K50: 743 | L50: 589 | M50: 808
I51: SOLAPUR | K51: 2503 | L51: 2238 | M51: 2448
I52: TALASARI | K52: 1218 | L52: 695 | M52: 1223
I53: UMERGAON | K53: 746 | L53: 569 | M53: 701
I54: VASAI | K54: 1448 | L54: 933 | M54: 1508
I55: UDMALPET | K55: 4273 | L55: 4338 | M55: 4113
A61: WISHING YOU EVERY SUCCESS AT ALL TIME.
A62: Thanks & Regards,;
A63: Anil Mistry M-7738006668
A64: (Manager - Sales_
A65: e-mail: anil_mistry@vipl.com

Sheet 10.10.13
X2: www.vipl.com
A4: Tel: +91-22-26824334 / 26824345 / 46 / 47. Fax: +91-22-26823662 E mail : vipl@vipl.com; info@vipl.com
A5: PRICES FOR RELIANCE INDS LTD. REON PVC w.e.f. 10TH OCTOBER - 2013 0600 AM : DW
A7: EX WORKS PRICE 10.10.13 | O7: EX DEPOT PRICE 10.10.13
A8: EX-WORKS - HAZIRA / BARODA / GANDHAR location disc in MAHARASHTRA/AP/KRNTKA/KERLA/TN. | R8: PRIME-GRADES | W8: OFF-GRADES
C9: CREDIT | J9: CASH | R9: 67-01/67BER01/67GER01 | S9: 67-11 | T9: 57GER01 | U9: 57GMR01 | V9: 67GER01F | W9: 67-03/67BER03/67GER03 | X9: 57GMR03
A10: GRADE | B10: NET | C10: LESS | D10: EXCISE | E10: CST | F10: LANDED | H10: NET | I10: LESS | J10: Less | K10: EXCISE | L10: CST | M10: LANDED
B11: BASIC | C11: LOC DISC | D11: 0.1236 | E11: 0.02 | F11: EX-PLANT | H11: BASIC | I11: LOC DISC | J11: Cach Disc | K11: 0.1236 | L11: =E11 -> 0.02 | M11: EX-PLANT | O11: MUMBAI /PANVEL | P11: CRDT. | Q11: BASIC | R11: 73893 | S11: =R11+500 -> 74393 | T11: =R11+3000 -> 76893 | U11: =R11+1500 -> 75393 | V11: =R11+300 -> 74193 | W11: =R11-1000 -> 72893 | X11: =R11+500 -> 74393
A12: 67-01/67BER01/67GER01 | B12: 72500 | C12: 500 | D12: =(B12-C12)*$D$11 -> 8899.2 | E12: =(B12-C12+D12)*$E$11 -> 1617.984 | F12: =(B12-C12)+D12+E12 -> 82517.184 | H12: =B12 -> 72500 | I12: 500 | J12: 700 | K12: =(H12-I12-J12)*$D$11 -> 8812.68 | L12: =(H12-I12-J12+K12)*$E$11 -> 1602.2536 | M12: =H12-I12-J12+K12+L12 -> 81714.9336 | Q12: EX.DUTY 12.36% | R12: =SUM(R11*12.36%) -> 9133.1748 | S12: 9194.9748 | T12: 9503.9748 | U12: 9318.5748 | V12: 9170.2548 | W12: 9009.5748 | X12: 9194.9748
A13: 67-11 | B13: =B12+500 -> 73000 | C13: 500 | D13: 8961 | E13: 1629.22 | F13: 83090.22 | H13: 73000 | I13: 500 | J13: =J12 -> 700 | K13: =(H13-I13-J13)*$D$11 -> 8874.48 | L13: 1613.4896 | M13: 82287.9696 | Q13: TRADE DISC. | R13: 0 | S13: 0 | T13: 0 | U13: 0 | V13: 0 | W13: 0 | X13: 0
A14: 67-03/67BER03/67GER03 | B14: =B12-1000 -> 71500 | C14: 500 | D14: 8775.6 | E14: 1595.512 | F14: 81371.112 | H14: 71500 | I14: 500 | J14: =J12 -> 700 | K14: 8689.08 | L14: 1579.7816 | M14: 80568.8616 | Q14: EX-GODOWN | R14: =R11+R12 -> 83026.1748 | S14: 83587.9748 | T14: 86396.9748 | U14: 84711.5748 | V14: 83363.2548 | W14: 81902.5748 | X14: 83587.9748
P15: CASH | Q15: CASH.DISC | R15: 700 | S15: =R15 -> 700 | T15: 700 | U15: 700 | V15: 700 | W15: 700 | X15: 700
A16: 57GMR01 | B16: =B12+1500 -> 74000 | C16: 500 | D16: 9084.6 | E16: 1651.692 | F16: 84236.292 | H16: 74000 | I16: 500 | J16: =J12 -> 700 | K16: 8998.08 | L16: 1635.9616 | M16: 83434.0416 | Q16: EX-GODOWN | R16: =R14-R15 -> 82326.1748 | S16: 82887.9748 | T16: 85696.9748 | U16: 84011.5748 | V16: 82663.2548 | W16: 81202.5748 | X16: 82887.9748
A17: 57GER01 | B17: =B12+3000 -> 75500 | C17: 500 | D17: 9270 | E17: 1685.4 | F17: 85955.4 | H17: 75500 | I17: 500 | J17: =J12 -> 700 | K17: 9183.48 | L17: 1669.6696 | M17: 85153.1496
A18: 57GMR03 | B18: =B12+500 -> 73000 | C18: 500 | D18: 8961 | E18: 1629.22 | F18: 83090.22 | H18: 73000 | I18: 500 | J18: =J12 -> 700 | K18: 8874.48 | L18: 1613.4896 | M18: 82287.9696 | O18: Daman | P18: CRDT. | Q18: BASIC | R18: =R11-65 -> 73828 | S18: =R18+500 -> 74328 | T18: =R18+3000 -> 76828 | U18: =R18+1500 -> 75328 | V18: =R18+300 -> 74128 | W18: =R18-1000 -> 72828 | X18: =R18+500 -> 74328
A19: 67GER01F | B19: =B12+300 -> 72800 | C19: 500 | D19: =(B19-C19)*$D$11 -> 8936.28 | E19: =(B19-C19+D19)*$E$11 -> 1624.7256 | F19: =(B19-C19)+D19+E19 -> 82861.0056 | H19: =H12+300 -> 72800 | I19: 500 | J19: =J12 -> 700 | K19: =(H19-I19-J19)*$D$11 -> 8849.76 | L19: =(H19-I19-J19+K19)*$E$11 -> 1608.9952 | M19: =H19-I19-J19+K19+L19 -> 82058.7552 | Q19: EX.DUTY 12.36% | R19: =SUM(R18*12.36%) -> 9125.1408 | S19: 9186.9408 | T19: 9495.9408 | U19: 9310.5408 | V19: 9162.2208 | W19: 9001.5408 | X19: 9186.9408
Q20: TRADE DISC. | R20: 0 | S20: 0 | T20: 0 | U20: 0 | V20: 0 | W20: 0 | X20: 0
A21: PLEASE NOTE THE FOLLOWING : | Q21: EX-GODOWN | R21: =R18+R19 -> 82953.1408 | S21: 83514.9408 | T21: 86323.9408 | U21: 84638.5408 | V21: 83290.2208 | W21: 81829.5408 | X21: 83514.9408
A22: 1) GRADE SPECIFIC DISC OF RS.1500/-MT FOR THE GRADES K 57GER01. | P22: CASH | Q22: CASH.DISC | R22: =R15 -> 700 | S22: =S15 -> 700 | T22: 700 | U22: 700 | V22: 700 | W22: 700 | X22: 700
A23: 2) PLEASE NOTE ITS MANDATORY TO HAVE SERVICE TAX NO W.E.F 01.06.08 FOR DISPATCHES FROM RIL | Q23: EX-GODOWN | R23: =R21-R22 -> 82253.1408 | S23: 82814.9408 | T23: 85623.9408 | U23: 83938.5408 | V23: 82590.2208 | W23: 81129.5408 | X23: 82814.9408
A24: 3) CUSTOMERS HAVE TO SUBMIT ORIGINAL 'C' FORM IN ADVANCE AGAINST PURCHASES MADE FROM
A25: RELIANCE INDS. LTD. | C25: 3A) UNLOADING CHARGES TO BE BORNE BY CUSTOMER IN CASE OF EX WORK SALE. | O25: Jalgaon | P25: CRDT. | Q25: BASIC | R25: =R11+101 -> 73994 | S25: =R25+500 -> 74494 | T25: =R25+3000 -> 76994 | U25: =R25+1500 -> 75494 | V25: =R25+300 -> 74294 | W25: =R25-1000 -> 72994 | X25: =R25+500 -> 74494
A26: 4) SALES TAX / VAT AS APPLICABLE RATES WILL BE EXTRA FOR HAZIRA , GANDHAR & GODOWN SALES. | Q26: EX.DUTY 12.36% | R26: =SUM(R25*12.36%) -> 9145.6584 | S26: 9207.4584 | T26: 9516.4584 | U26: 9331.0584 | V26: 9182.7384 | W26: 9022.0584 | X26: 9207.4584
A27: 5) OCTROI & OTHER LOCAL LEVIES ARE TO BE BORNE BY THE CUSTOMER. | Q27: TRADE DISC. | R27: 0 | S27: 0 | T27: 0 | U27: 0 | V27: 0 | W27: 0 | X27: 0
A28: 6) LOADING CHARGES AND TRANSPORTATION FOR EX.GODOWN SALES TO BE BORNE BY CUSTOMER. | Q28: EX-GODOWN | R28: =R25+R26 -> 83139.6584 | S28: 83701.4584 | T28: 86510.4584 | U28: 84825.0584 | V28: 83476.7384 | W28: 82016.0584 | X28: 83701.4584
A29: 7) INTEREST FREE CREDIT DAYS HAVE BEEN REDUCED FROM 14 TO 10 DAYS. | P29: CASH | Q29: CASH.DISC | R29: =R15 -> 700 | S29: =S15 -> 700 | T29: 700 | U29: 700 | V29: 700 | W29: 700 | X29: 700
Q30: EX-GODOWN | R30: =R28-R29 -> 82439.6584 | S30: 83001.4584 | T30: 85810.4584 | U30: 84125.0584 | V30: 82776.7384 | W30: 81316.0584 | X30: 83001.4584
A31: QUANTITY DISCOUNT | I31: TRANSPORTATION WEF 1ST OCT 13
A32: QTY(MT) | B32: 0 < 27 | C32: 27 < 54 | D32: 54 <99 | E32: 99<198 | F32: 198 > | I32: DESTINATION | K32: BD | L32: Hazira | M32: Gandhar | O32: Pune | P32: CRDT. | Q32: BASIC | R32: =R11+798 -> 74691 | S32: =R32+500 -> 75191 | T32: =R32+3000 -> 77691 | U32: =R32+1500 -> 76191 | V32: =R32+300 -> 74991 | W32: =R32-1000 -> 73691 | X32: =R32+500 -> 75191
B33: 0 | C33: 100 | D33: 200 | E33: 300 | F33: 400 | I33: ALWAR - JAIPUR | K33: 2113 | L33: 2538 | M33: 2193 | Q33: EX.DUTY 12.36% | R33: =SUM(R32*12.36%) -> 9231.8076 | S33: 9293.6076 | T33: 9602.6076 | U33: 9417.2076 | V33: 9268.8876 | W33: 9108.2076 | X33: 9293.6076
I34: AHEMADNAGAR | K34: 1863 | L34: 1603 | M34: 1998 | Q34: TRADE DISC. | R34: 0 | S34: 0 | T34: 0 | U34: 0 | V34: 0 | W34: 0 | X34: 0
A35: REGIONAL DISCOUNT : RIL-Ex- WORKS - Hazira , Baroda , Gandhar as under. | I35: BHAMBORI | K35: 1443 | L35: 1073 | M35: 1403 | Q35: EX-GODOWN | R35: =R32+R33 -> 83922.8076 | S35: 84484.6076 | T35: 87293.6076 | U35: 85608.2076 | V35: 84259.8876 | W35: 82799.2076 | X35: 84484.6076
B36: K6701 | C36: 67BER01 | D36: 67GER01 | I36: BARODA | K36: - | L36: - | M36: - | P36: CASH | Q36: CASH.DISC | R36: =R15 -> 700 | S36: =S15 -> 700 | T36: 700 | U36: 700 | V36: 700 | W36: 700 | X36: 700
A37: Tamilnadu/Kerala | B37: 2000 | C37: 2000 | D37: 2000 | I37: BARSHI | K37: 2503 | L37: 2238 | M37: 2448 | Q37: EX-GODOWN | R37: =R35-R36 -> 83222.8076 | S37: 83784.6076 | T37: 86593.6076 | U37: 84908.2076 | V37: 83559.8876 | W37: 82099.2076 | X37: 83784.6076
A38: Pondichery | B38: 2000 | C38: 2000 | D38: 2000 | I38: BHUJ | K38: 1263 | L38: 1263 | M38: 865
A39: Karnataka | B39: 1000 | C39: 1000 | D39: 1000 | I39: BOISAR | K39: 1268 | L39: 868 | M39: 1283 | O39: Silvassa | P39: CRDT. | Q39: BASIC | R39: =R11-23 -> 73870 | S39: =R39+500 -> 74370 | T39: =R39+3000 -> 76870 | U39: =R39+1500 -> 75370 | V39: =R39+300 -> 74170 | W39: =R39-1000 -> 72870 | X39: =R39+500 -> 74370
A40: Note: Above discounts would be applicable only on above pipe grades. | I40: DAMAN | K40: 763 | L40: 547 | M40: 798 | Q40: EX.DUTY 12.36% | R40: =SUM(R39*12.36%) -> 9130.332 | S40: 9192.132 | T40: 9501.132 | U40: 9315.732 | V40: 9167.412 | W40: 9006.732 | X40: 9192.132
B41: ( prime , nonprime n off grades ). | I41: DEHRADUN | K41: 2947 | L41: 3118 | M41: 3107 | Q41: TRADE DISC. | R41: 0 | S41: 0 | T41: 0 | U41: 0 | V41: 0 | W41: 0 | X41: 0
I42: GOA | K42: 2963 | L42: 2963 | M42: 2963 | Q42: EX-GODOWN | R42: =R39+R40 -> 83000.332 | S42: 83562.132 | T42: 86371.132 | U42: 84685.732 | V42: 83337.412 | W42: 81876.732 | X42: 83562.132
I43: GONDIA | K43: - | L43: 1945 | M43: 2163 | P43: CASH | Q43: CASH.DISC | R43: =R15 -> 700 | S43: =S15 -> 700 | T43: 700 | U43: 700 | V43: 700 | W43: 700 | X43: 700
A44: D.E. Prices for Ex Fact- Hazira , Baroda , Gandhar Complexes | I44: GARADHIA | K44: 423 | L44: 610 | M44: 505 | Q44: EX-GODOWN | R44: =R42-R43 -> 82300.332 | S44: 82862.132 | T44: 85671.132 | U44: 83985.732 | V44: 82637.412 | W44: 81176.732 | X44: 82862.132
A45: Location | B45: Type | C45: 67.01 | I45: HARIDWAR | K45: 2971 | L45: 3061 | M45: 2942
C46: 67GER01 | D46: 57GER01 | E46: 57GMR01 | F46: 67.11 | G46: 67GER01 F | I46: JALGAON | K46: 1461 | L46: 1106 | M46: 1411 | O46: Hyderabad | P46: CRDT. | Q46: BASIC | R46: =R11+1922 -> 75815 | S46: =R46+500 -> 76315 | T46: =R46+3000 -> 78815 | U46: =R46+1500 -> 77315 | V46: =R46+300 -> 76115 | W46: =R46-1000 -> 74815 | X46: =R46+500 -> 76315
A47: EX WORKS HZ , BC & GC. | B47: EOU-CT3/AIL | C47: =B12-5000 -> 67500 | D47: =B12-3500 -> 69000 | E47: =B12-3500 -> 69000 | F47: =B12-4500 -> 68000 | G47: =B12-4700 -> 67800 | I47: RAVER | K47: 1538 | L47: 1158 | M47: 1528 | Q47: EX.DUTY 12.36% | R47: =SUM(R46*12.36%) -> 9370.734 | S47: 9432.534 | T47: 9741.534 | U47: 9556.134 | V47: 9407.814 | W47: 9247.134 | X47: 9432.534
I48: JAMMU | K48: 3713 | L48: 3363 | M48: 3811 | Q48: TRADE DISC. | R48: 0 | S48: 0 | T48: 0 | U48: 0 | V48: 0 | W48: 0 | X48: 0
I49: MUMBAI | K49: 1443 | L49: 1133 | M49: 1453 | Q49: EX-GODOWN | R49: =R46+R47 -> 85185.734 | S49: 85747.534 | T49: 88556.534 | U49: 86871.134 | V49: 85522.814 | W49: 84062.134 | X49: 85747.534
I50: NALGONDA | K50: 2956 | L50: 2638 | M50: 2773 | P50: CASH | Q50: CASH.DISC | R50: =R15 -> 700 | S50: =S15 -> 700 | T50: 700 | U50: 700 | V50: 700 | W50: 700 | X50: 700
I51: NASHIK | K51: 1483 | L51: 1173 | M51: 1533 | Q51: EX-GODOWN | R51: =R49-R50 -> 84485.734 | S51: 85047.534 | T51: 87856.534 | U51: 86171.134 | V51: 84822.814 | W51: 83362.134 | X51: 85047.534
I52: NAGPUR | K52: 2119 | L52: 1852 | M52: 2102
I53: PHALTAN | K53: - | L53: 2213 | M53: - | O53: Salem | P53: CRDT. | Q53: BASIC | R53: =R11+825 -> 74718 | S53: =R53+2500 -> 77218 | T53: =R53+5000 -> 79718 | U53: =R53+3500 -> 78218 | V53: =R53+2300 -> 77018 | W53: =R53-1000 -> 73718 | X53: =R53+2500 -> 77218
I54: SANGLI | K54: 2273 | L54: 2253 | M54: 2503 | Q54: EX.DUTY 12.36% | R54: =SUM(R53*12.36%) -> 9235.1448 | S54: 9544.1448 | T54: 9853.1448 | U54: 9667.7448 | V54: 9519.4248 | W54: 9111.5448 | X54: 9544.1448
I55: SATARA | K55: 2213 | L55: 2213 | M55: 2188 | Q55: TRADE DISC. | R55: =R15 -> 700 | S55: =S15 -> 700 | T55: 700 | U55: 700 | V55: 700 | W55: 700 | X55: 700
I56: SILVASSA | K56: 743 | L56: 589 | M56: 808 | Q56: EX-GODOWN | R56: =R53+R54 -> 83953.1448 | S56: 86762.1448 | T56: 89571.1448 | U56: 87885.7448 | V56: 86537.4248 | W56: 82829.5448 | X56: 86762.1448
I57: SOLAPUR | K57: 2503 | L57: 2238 | M57: 2448 | P57: CASH | Q57: CASH.DISC | R57: =R15 -> 700 | S57: =S15 -> 700 | T57: 700 | U57: 700 | V57: 700 | W57: 700 | X57: 700
I58: TALASARI | K58: 1218 | L58: 695 | M58: 1223 | Q58: EX-GODOWN | R58: =R56-R57 -> 83253.1448 | S58: 86062.1448 | T58: 88871.1448 | U58: 87185.7448 | V58: 85837.4248 | W58: 82129.5448 | X58: 86062.1448
I59: UMERGAON | K59: 746 | L59: 569 | M59: 701
I60: VASAI | K60: 1448 | L60: 933 | M60: 1508 | O60: Dehradun | P60: CRDT. | Q60: BASIC | R60: =R11+2543 -> 76436 | S60: =R60+500 -> 76936 | T60: =R60+3000 -> 79436 | U60: =R60+1500 -> 77936 | V60: =R60+300 -> 76736 | W60: =R60-1000 -> 75436 | X60: =R60+500 -> 76936
I61: UDMALPET | K61: 4273 | L61: 4338 | M61: 4113 | Q61: EX.DUTY 12.36% | R61: =SUM(R60*12.36%) -> 9447.4896 | S61: 9509.2896 | T61: 9818.2896 | U61: 9632.8896 | V61: 9484.5696 | W61: 9323.8896 | X61: 9509.2896
Q62: TRADE DISC. | R62: 0 | S62: 0 | T62: 0 | U62: 0 | V62: 0 | W62: 0 | X62: 0
Q63: EX-GODOWN | R63: =R60+R61 -> 85883.4896 | S63: 86445.2896 | T63: 89254.2896 | U63: 87568.8896 | V63: 86220.5696 | W63: 84759.8896 | X63: 86445.2896
P64: CASH | Q64: CASH.DISC | R64: =R15 -> 700 | S64: =S15 -> 700 | T64: 700 | U64: 700 | V64: 700 | W64: 700 | X64: 700
Q65: EX-GODOWN | R65: =R63-R64 -> 85183.4896 | S65: 85745.2896 | T65: 88554.2896 | U65: 86868.8896 | V65: 85520.5696 | W65: 84059.8896 | X65: 85745.2896
A67: WISHING YOU EVERY SUCCESS AT ALL TIME. | O67: JAIPUR | P67: CRDT. | Q67: BASIC | R67: =R11+1128 -> 75021 | S67: =R67+500 -> 75521 | T67: =R67+3000 -> 78021 | U67: =R67+1500 -> 76521 | V67: =R67+300 -> 75321 | W67: =R67-1000 -> 74021 | X67: =R67+500 -> 75521
A68: Thanks & Regards,; | Q68: EX.DUTY 12.36% | R68: =SUM(R67*12.36%) -> 9272.5956 | S68: 9334.3956 | T68: 9643.3956 | U68: 9457.9956 | V68: 9309.6756 | W68: 9148.9956 | X68: 9334.3956
A69: Anil Mistry M-7738006668 | Q69: TRADE DISC. | R69: 0 | S69: 0 | T69: 0 | U69: 0 | V69: 0 | W69: 0 | X69: 0
A70: (Manager - Sales_ | Q70: EX-GODOWN | R70: =R67+R68 -> 84293.5956 | S70: 84855.3956 | T70: 87664.3956 | U70: 85978.9956 | V70: 84630.6756 | W70: 83169.9956 | X70: 84855.3956
A71: e-mail: anil_mistry@vipl.com | P71: CASH | Q71: CASH.DISC | R71: =R22 -> 700 | S71: =S22 -> 700 | T71: 700 | U71: 700 | V71: 700 | W71: 700 | X71: 700
Q72: EX-GODOWN | R72: =R70-R71 -> 83593.5956 | S72: 84155.3956 | T72: 86964.3956 | U72: 85278.9956 | V72: 83930.6756 | W72: 82469.9956 | X72: 84155.3956
